[Event "Late-Titled-Tuesday-Blitz-April-23-2024"]
[Site "Chess.com"]
[Date "2024.04.23"]
[Round "5"]
[White "IndianSchoolOfSuffering"]
[Black "lluiss"]
[Result "1-0"]
[WhiteElo "2409"]
[BlackElo "2143"]
[TimeControl "180+1"]
[EndTime "14:56:30 PDT"]
[Termination "IndianSchoolOfSuffering won on time"]

1. e4 {[%clk 0:02:43.5]} 1... c5 {[%clk 0:02:58.9]} 2. Nf3 {[%clk 0:02:41.2]}
2... d6 {[%clk 0:02:59.2]} 3. d4 {[%clk 0:02:39.5]} 3... cxd4 {[%clk 0:02:59.7]}
4. Nxd4 {[%clk 0:02:39.6]} 4... Nf6 {[%clk 0:02:59.9]} 5. Nc3 {[%clk 0:02:39.8]}
5... g6 {[%clk 0:02:59.7]} 6. Be3 {[%clk 0:02:38.5]} 6... Bg7 {[%clk 0:02:59.3]}
7. f3 {[%clk 0:02:38]} 7... O-O {[%clk 0:02:59.2]} 8. Qd2 {[%clk 0:02:37.8]}
8... Nc6 {[%clk 0:02:58.9]} 9. O-O-O {[%clk 0:02:38.4]} 9... Nxd4 {[%clk
0:02:58.6]} 10. Bxd4 {[%clk 0:02:35.3]} 10... Be6 {[%clk 0:02:59]} 11. Kb1
{[%clk 0:02:21.4]} 11... Qc7 {[%clk 0:02:57.6]} 12. g4 {[%clk 0:02:18.4]} 12...
Rfc8 {[%clk 0:02:56.5]} 13. h4 {[%clk 0:02:17.6]} 13... Qa5 {[%clk 0:02:56.2]}
14. Nd5 {[%clk 0:02:10.6]} 14... Qxd2 {[%clk 0:02:53.9]} 15. Nxf6+ {[%clk
0:02:10.6]} 15... Bxf6 {[%clk 0:02:49.8]} 16. Rxd2 {[%clk 0:02:10.1]} 16... Kg7
{[%clk 0:02:48.6]} 17. Be3 {[%clk 0:02:03]} 17... Kg8 {[%clk 0:02:29.5]} 18. Bd3
{[%clk 0:01:57.4]} 18... Bc4 {[%clk 0:02:07.8]} 19. h5 {[%clk 0:01:52.3]} 19...
d5 {[%clk 0:01:17.4]} 20. Bxc4 {[%clk 0:01:48.8]} 20... dxc4 {[%clk 0:01:16.6]}
21. c3 {[%clk 0:01:44.5]} 21... b5 {[%clk 0:01:12.6]} 22. Rd5 {[%clk 0:01:37.5]}
22... a6 {[%clk 0:00:41.3]} 23. Rhd1 {[%clk 0:01:36.6]} 23... e6 {[%clk
0:00:41]} 24. Rd7 {[%clk 0:01:34.9]} 24... Rab8 {[%clk 0:00:40.9]} 25. hxg6
{[%clk 0:01:25.9]} 25... hxg6 {[%clk 0:00:40.2]} 26. Bd4 {[%clk 0:01:17.1]}
26... e5 {[%clk 0:00:26.5]} 27. Ba7 {[%clk 0:01:14.6]} 27... Ra8 {[%clk
0:00:25.1]} 28. Be3 {[%clk 0:01:05.1]} 28... Rab8 {[%clk 0:00:22.8]} 29. g5
{[%clk 0:01:04.5]} 29... Bd8 {[%clk 0:00:15.9]} 30. R1d5 {[%clk 0:00:44.2]}
30... Bb6 {[%clk 0:00:07.5]} 31. Bxb6 {[%clk 0:00:41.1]} 31... Rxb6 {[%clk
0:00:08.4]} 32. Rxe5 {[%clk 0:00:37.9]} 32... b4 {[%clk 0:00:08.3]} 33. Kc2
{[%clk 0:00:34.1]} 33... bxc3 {[%clk 0:00:08.4]} 34. Kxc3 {[%clk 0:00:34.1]}
34... Rcb8 {[%clk 0:00:04.4]} 35. Ree7 {[%clk 0:00:32.5]} 35... Rf8 {[%clk
0:00:04.3]} 36. Rb7 {[%clk 0:00:29.9]} 36... Rxb7 {[%clk 0:00:01.7]} 37. Rxb7
{[%clk 0:00:29.6]} 37... f6 {[%clk 0:00:02.5]} 38. Rb6 {[%clk 0:00:27.1]} 38...
fxg5 {[%clk 0:00:01.9]} 39. Rxg6+ {[%clk 0:00:26.9]} 39... Kh7 {[%clk
0:00:01.8]} 40. Rxg5 {[%clk 0:00:26.9]} 40... Rxf3+ {[%clk 0:00:02]} 41. Kxc4
{[%clk 0:00:27.1]} 1-0

[Event "Late-Titled-Tuesday-Blitz-April-23-2024"]
[Site "Chess.com"]
[Date "2024.04.23"]
[Round "5"]
[White "rynos0411"]
[Black "NitaLucian"]
[Result "0-1"]
[WhiteElo "2506"]
[BlackElo "2365"]
[TimeControl "180+1"]
[EndTime "14:56:32 PDT"]
[Termination "NitaLucian won by resignation"]

1. e4 {[%clk 0:03:00.9]} 1... d6 {[%clk 0:02:56.9]} 2. d4 {[%clk 0:02:58.8]}
2... Nf6 {[%clk 0:02:56.9]} 3. Nc3 {[%clk 0:02:59.1]} 3... e5 {[%clk 0:02:56.8]}
4. Nf3 {[%clk 0:02:58.5]} 4... Nbd7 {[%clk 0:02:56.4]} 5. Bc4 {[%clk 0:02:58.9]}
5... Be7 {[%clk 0:02:56.5]} 6. O-O {[%clk 0:02:59.4]} 6... O-O {[%clk
0:02:56.6]} 7. a4 {[%clk 0:02:58.8]} 7... a5 {[%clk 0:02:56.3]} 8. Re1 {[%clk
0:02:59.2]} 8... c6 {[%clk 0:02:56.6]} 9. h3 {[%clk 0:02:36.8]} 9... Nb6 {[%clk
0:02:56.1]} 10. Bb3 {[%clk 0:02:36.3]} 10... exd4 {[%clk 0:02:55.9]} 11. Nxd4
{[%clk 0:02:35.8]} 11... d5 {[%clk 0:02:55.8]} 12. e5 {[%clk 0:02:34.8]} 12...
Ne8 {[%clk 0:02:54.7]} 13. Nf3 {[%clk 0:02:18.8]} 13... Nc7 {[%clk 0:02:54.1]}
14. Be3 {[%clk 0:02:10.1]} 14... Nd7 {[%clk 0:02:53.4]} 15. Ne2 {[%clk
0:02:07.4]} 15... Re8 {[%clk 0:02:45.5]} 16. Ng3 {[%clk 0:01:59.6]} 16... Bc5
{[%clk 0:02:43.8]} 17. c3 {[%clk 0:01:58.2]} 17... Bxe3 {[%clk 0:02:42.4]} 18.
Rxe3 {[%clk 0:01:59.1]} 18... Nc5 {[%clk 0:02:40.9]} 19. Bc2 {[%clk 0:01:58.2]}
19... f6 {[%clk 0:02:38.7]} 20. exf6 {[%clk 0:01:45.7]} 20... Rxe3 {[%clk
0:02:37.9]} 21. f7+ {[%clk 0:01:45.3]} 21... Kxf7 {[%clk 0:02:37.7]} 22. fxe3
{[%clk 0:01:45.9]} 22... g6 {[%clk 0:02:26.1]} 23. Ne5+ {[%clk 0:01:38.3]} 23...
Kg8 {[%clk 0:02:24.9]} 24. Qf3 {[%clk 0:01:35.6]} 24... Qf8 {[%clk 0:02:22.1]}
25. Qe2 {[%clk 0:01:31.1]} 25... Qe7 {[%clk 0:02:15.6]} 26. Nf3 {[%clk
0:01:24.3]} 26... Bd7 {[%clk 0:02:10.5]} 27. Qd2 {[%clk 0:01:23.1]} 27... Re8
{[%clk 0:02:07]} 28. Re1 {[%clk 0:01:22.7]} 28... N7e6 {[%clk 0:02:04.1]} 29.
Kh2 {[%clk 0:01:19.5]} 29... Ng5 {[%clk 0:01:58]} 30. Nd4 {[%clk 0:00:59.5]}
30... Nce4 {[%clk 0:01:55.1]} 31. Nxe4 {[%clk 0:01:00]} 31... Nxe4 {[%clk
0:01:54.2]} 32. Bxe4 {[%clk 0:01:00.5]} 32... Qxe4 {[%clk 0:01:53.8]} 33. Qf2
{[%clk 0:00:59.9]} 33... Rf8 {[%clk 0:01:51.9]} 34. Qg3 {[%clk 0:01:00.3]} 34...
c5 {[%clk 0:01:49.1]} 35. Nb5 {[%clk 0:00:55.7]} 35... Qxa4 {[%clk 0:01:38.1]}
36. Nc7 {[%clk 0:00:55.7]} 36... Qc6 {[%clk 0:01:33.2]} 37. Rd1 {[%clk
0:00:55.4]} 37... Rf7 {[%clk 0:01:15.8]} 38. Nxd5 {[%clk 0:00:54.2]} 38... Bf5
{[%clk 0:01:11.5]} 39. Qe5 {[%clk 0:00:51.8]} 39... Qe6 {[%clk 0:01:10]} 40.
Qxe6 {[%clk 0:00:48.5]} 40... Bxe6 {[%clk 0:01:09.5]} 41. Nf4 {[%clk 0:00:49.4]}
41... Bc4 {[%clk 0:01:08]} 42. Rd6 {[%clk 0:00:42.7]} 42... Rc7 {[%clk
0:01:05.6]} 43. Kg3 {[%clk 0:00:41.6]} 43... a4 {[%clk 0:01:03.4]} 44. e4 {[%clk
0:00:37.7]} 44... b5 {[%clk 0:01:01.9]} 45. e5 {[%clk 0:00:37.1]} 45... Re7
{[%clk 0:00:58.1]} 46. e6 {[%clk 0:00:36.4]} 46... g5 {[%clk 0:00:51.7]} 47. Nd5
{[%clk 0:00:32.3]} 47... Bxd5 {[%clk 0:00:47.1]} 48. Rxd5 {[%clk 0:00:33.2]}
48... Rxe6 {[%clk 0:00:46.7]} 49. Rxc5 {[%clk 0:00:33.8]} 49... Rb6 {[%clk
0:00:42.9]} 50. Rxg5+ {[%clk 0:00:33.7]} 50... Kf7 {[%clk 0:00:43.4]} 51. Kf4
{[%clk 0:00:32.5]} 51... b4 {[%clk 0:00:43.3]} 52. Rf5+ {[%clk 0:00:30.8]} 52...
Kg6 {[%clk 0:00:42.5]} 53. Rg5+ {[%clk 0:00:31.2]} 53... Kf7 {[%clk 0:00:42]}
54. Ra5 {[%clk 0:00:30.9]} 54... a3 {[%clk 0:00:40]} 55. bxa3 {[%clk 0:00:30.8]}
55... b3 {[%clk 0:00:38.9]} 0-1

[Event "Late-Titled-Tuesday-Blitz-April-23-2024"]
[Site "Chess.com"]
[Date "2024.04.23"]
[Round "5"]
[White "Andrii_Prydun"]
[Black "Pig-filth"]
[Result "0-1"]
[WhiteElo "2351"]
[BlackElo "2252"]
[TimeControl "180+1"]
[EndTime "14:56:34 PDT"]
[Termination "Pig-filth won on time"]

1. e4 {[%clk 0:02:16.9]} 1... Nf6 {[%clk 0:02:57.3]} 2. e5 {[%clk 0:02:13.8]}
2... Nd5 {[%clk 0:02:57]} 3. d4 {[%clk 0:02:05.1]} 3... d6 {[%clk 0:02:55.4]} 4.
c4 {[%clk 0:01:59.9]} 4... Nb6 {[%clk 0:02:52.8]} 5. f4 {[%clk 0:01:57.2]} 5...
Bf5 {[%clk 0:02:48.6]} 6. Nc3 {[%clk 0:01:55.3]} 6... e6 {[%clk 0:02:46.1]} 7.
Nf3 {[%clk 0:01:54.9]} 7... Be7 {[%clk 0:02:41.8]} 8. Be2 {[%clk 0:01:43.3]}
8... dxe5 {[%clk 0:02:42]} 9. fxe5 {[%clk 0:01:40.3]} 9... Nc6 {[%clk
0:02:39.2]} 10. Be3 {[%clk 0:01:36.6]} 10... O-O {[%clk 0:02:32.1]} 11. O-O
{[%clk 0:01:35.9]} 11... f6 {[%clk 0:02:32.8]} 12. Qe1 {[%clk 0:01:32.7]} 12...
Bg4 {[%clk 0:02:23.2]} 13. Rd1 {[%clk 0:01:30.8]} 13... Bxf3 {[%clk 0:02:18.3]}
14. Rxf3 {[%clk 0:01:24.6]} 14... fxe5 {[%clk 0:02:14.9]} 15. dxe5 {[%clk
0:01:25.5]} 15... Qe8 {[%clk 0:02:09.9]} 16. Qg3 {[%clk 0:01:05.3]} 16... Rxf3
{[%clk 0:02:06.4]} 17. Bxf3 {[%clk 0:01:05.1]} 17... Nxc4 {[%clk 0:02:03.7]} 18.
Bh6 {[%clk 0:01:03.3]} 18... Qg6 {[%clk 0:02:02.3]} 19. Qxg6 {[%clk 0:01:02.3]}
19... hxg6 {[%clk 0:02:03.2]} 20. Bc1 {[%clk 0:01:00.5]} 20... N4xe5 {[%clk
0:02:03.3]} 21. Be4 {[%clk 0:01:00.7]} 21... Rd8 {[%clk 0:01:56.3]} 22. Rxd8+
{[%clk 0:00:59.8]} 22... Bxd8 {[%clk 0:01:56]} 23. Be3 {[%clk 0:00:59.7]} 23...
a6 {[%clk 0:01:55.6]} 24. b3 {[%clk 0:00:58.7]} 24... Kf7 {[%clk 0:01:56]} 25.
Ne2 {[%clk 0:00:54.4]} 25... Kf6 {[%clk 0:01:56.9]} 26. h3 {[%clk 0:00:47.3]}
26... Kf7 {[%clk 0:01:57.3]} 27. g4 {[%clk 0:00:44.7]} 27... Bh4 {[%clk
0:01:44.7]} 28. Kg2 {[%clk 0:00:43.3]} 28... g5 {[%clk 0:01:36.7]} 29. Nd4
{[%clk 0:00:33.7]} 29... Nxd4 {[%clk 0:01:36.3]} 30. Bxd4 {[%clk 0:00:34.6]}
30... Nc6 {[%clk 0:01:33.3]} 31. Bc3 {[%clk 0:00:18.4]} 31... Nd8 {[%clk
0:01:26.4]} 32. Bd2 {[%clk 0:00:15.7]} 32... c6 {[%clk 0:01:26]} 33. Bc3 {[%clk
0:00:15.7]} 33... b5 {[%clk 0:01:24.1]} 34. Ba5 {[%clk 0:00:12.3]} 34... Nb7
{[%clk 0:01:21.1]} 35. Bb4 {[%clk 0:00:12]} 35... c5 {[%clk 0:01:20.5]} 36. Bd2
{[%clk 0:00:11.9]} 36... Nd6 {[%clk 0:01:16.9]} 37. Bd3 {[%clk 0:00:12.5]} 37...
c4 {[%clk 0:01:14.3]} 38. bxc4 {[%clk 0:00:12.8]} 38... Nxc4 {[%clk 0:01:15.2]}
39. Bc3 {[%clk 0:00:11]} 39... Ne3+ {[%clk 0:01:09.5]} 40. Kf3 {[%clk 0:00:11]}
40... Nd5 {[%clk 0:01:09.7]} 41. Bd2 {[%clk 0:00:10.2]} 41... e5 {[%clk
0:01:04.6]} 42. Bc2 {[%clk 0:00:08.1]} 42... Nf4 {[%clk 0:01:02.8]} 43. a4
{[%clk 0:00:03]} 43... bxa4 {[%clk 0:01:01.2]} 44. Bxa4 {[%clk 0:00:02.3]} 44...
Nxh3 {[%clk 0:01:01.2]} 45. Bb3+ {[%clk 0:00:02.1]} 45... Kf6 {[%clk 0:01:01.4]}
46. Bc4 {[%clk 0:00:02.3]} 46... Nf4 {[%clk 0:01:02.2]} 47. Bxa6 {[%clk
0:00:01.8]} 47... Ne6 {[%clk 0:01:01.1]} 48. Bb7 {[%clk 0:00:02.1]} 48... Nd4+
{[%clk 0:01:01.4]} 49. Kg2 {[%clk 0:00:02.5]} 49... Nb3 {[%clk 0:00:59.1]} 50.
Be4 {[%clk 0:00:02.9]} 50... Nxd2 {[%clk 0:00:58.9]} 0-1

[Event "Late-Titled-Tuesday-Blitz-April-23-2024"]
[Site "Chess.com"]
[Date "2024.04.23"]
[Round "5"]
[White "Eloist"]
[Black "Denmark2015"]
[Result "0-1"]
[WhiteElo "2455"]
[BlackElo "2616"]
[TimeControl "180+1"]
[EndTime "14:56:36 PDT"]
[Termination "Denmark2015 won on time"]

1. e4 {[%clk 0:03:00.9]} 1... e6 {[%clk 0:03:00]} 2. d4 {[%clk 0:03:00.2]} 2...
d5 {[%clk 0:03:00.3]} 3. Nd2 {[%clk 0:02:59.5]} 3... Be7 {[%clk 0:03:00.1]} 4.
e5 {[%clk 0:02:58.5]} 4... c5 {[%clk 0:02:59.3]} 5. c3 {[%clk 0:02:58.5]} 5...
cxd4 {[%clk 0:02:55.5]} 6. cxd4 {[%clk 0:02:58]} 6... Qb6 {[%clk 0:02:55.6]} 7.
Ndf3 {[%clk 0:02:49.5]} 7... Bb4+ {[%clk 0:02:46.7]} 8. Bd2 {[%clk 0:02:48.9]}
8... Nc6 {[%clk 0:02:44.5]} 9. Bxb4 {[%clk 0:02:29.7]} 9... Qxb4+ {[%clk
0:02:31.5]} 10. Qd2 {[%clk 0:02:29.5]} 10... Bd7 {[%clk 0:02:27]} 11. Bd3 {[%clk
0:02:22.4]} 11... Qb6 {[%clk 0:02:22.2]} 12. Ne2 {[%clk 0:02:19.4]} 12... a5
{[%clk 0:02:06.8]} 13. O-O {[%clk 0:02:14.6]} 13... Nge7 {[%clk 0:02:05.4]} 14.
Rac1 {[%clk 0:02:03.1]} 14... Qb4 {[%clk 0:01:52.9]} 15. Rc3 {[%clk 0:01:42.8]}
15... a4 {[%clk 0:01:40.3]} 16. a3 {[%clk 0:01:37.2]} 16... Qb6 {[%clk
0:01:40.2]} 17. h4 {[%clk 0:01:10.7]} 17... h6 {[%clk 0:01:39.9]} 18. Rfc1
{[%clk 0:00:51.7]} 18... Na5 {[%clk 0:01:39.2]} 19. Qf4 {[%clk 0:00:42.7]} 19...
Nb3 {[%clk 0:01:29.3]} 20. R1c2 {[%clk 0:00:39.4]} 20... O-O {[%clk 0:00:59.6]}
21. Qg4 {[%clk 0:00:23.1]} 21... Nf5 {[%clk 0:00:51]} 22. h5 {[%clk 0:00:14.8]}
22... Rac8 {[%clk 0:00:49.7]} 23. Rxc8 {[%clk 0:00:12.6]} 23... Rxc8 {[%clk
0:00:49.3]} 24. Rxc8+ {[%clk 0:00:12.8]} 24... Bxc8 {[%clk 0:00:50.2]} 25. Bxf5
{[%clk 0:00:10.4]} 25... exf5 {[%clk 0:00:49.7]} 26. Qh4 {[%clk 0:00:08.8]}
26... Qc7 {[%clk 0:00:43.9]} 27. Nc3 {[%clk 0:00:08.5]} 27... Be6 {[%clk
0:00:35.8]} 28. Qf4 {[%clk 0:00:06.6]} 28... Qc6 {[%clk 0:00:33.8]} 29. Qh4
{[%clk 0:00:06.3]} 29... Qd7 {[%clk 0:00:31.5]} 30. Qf4 {[%clk 0:00:05.8]} 30...
Na5 {[%clk 0:00:29.2]} 31. Qc1 {[%clk 0:00:04.8]} 31... Nc4 {[%clk 0:00:29.2]}
32. Qc2 {[%clk 0:00:04.5]} 32... b5 {[%clk 0:00:28.8]} 33. Na2 {[%clk
0:00:04.3]} 33... f4 {[%clk 0:00:25.6]} 34. Nb4 {[%clk 0:00:03.8]} 34... Bg4
{[%clk 0:00:24.2]} 35. Qc1 {[%clk 0:00:04.2]} 35... Bxf3 {[%clk 0:00:23.5]} 36.
gxf3 {[%clk 0:00:04.5]} 36... Qf5 {[%clk 0:00:23.3]} 37. Nxd5 {[%clk 0:00:04.3]}
37... Qxh5 {[%clk 0:00:21.7]} 38. Qf1 {[%clk 0:00:01.2]} 38... Nd2 {[%clk
0:00:20]} 39. Qg2 {[%clk 0:00:01.2]} 39... Nxf3+ {[%clk 0:00:20.1]} 40. Kf1
{[%clk 0:00:01.8]} 40... Kh7 {[%clk 0:00:17.9]} 0-1

[Event "Late-Titled-Tuesday-Blitz-April-23-2024"]
[Site "Chess.com"]
[Date "2024.04.23"]
[Round "5"]
[White "Godzillator"]
[Black "DonJuanEGenaro"]
[Result "1-0"]
[WhiteElo "2354"]
[BlackElo "2036"]
[TimeControl "180+1"]
[EndTime "14:56:36 PDT"]
[Termination "Godzillator won by resignation"]

1. c4 {[%clk 0:02:58.3]} 1... c5 {[%clk 0:02:58.1]} 2. Nf3 {[%clk 0:02:56.8]}
2... Nc6 {[%clk 0:02:58.1]} 3. g3 {[%clk 0:02:57]} 3... e6 {[%clk 0:02:58.3]} 4.
Bg2 {[%clk 0:02:57.4]} 4... d5 {[%clk 0:02:58.5]} 5. cxd5 {[%clk 0:02:56.6]}
5... exd5 {[%clk 0:02:58.6]} 6. O-O {[%clk 0:02:56.7]} 6... Qf6 {[%clk
0:02:46.5]} 7. d4 {[%clk 0:02:53.2]} 7... cxd4 {[%clk 0:02:35.2]} 8. Bg5 {[%clk
0:02:51.4]} 8... Qg6 {[%clk 0:02:34.1]} 9. Na3 {[%clk 0:02:49]} 9... Bxa3 {[%clk
0:02:24.3]} 10. bxa3 {[%clk 0:02:49.2]} 10... Nf6 {[%clk 0:02:23.9]} 11. Bf4
{[%clk 0:02:34.7]} 11... O-O {[%clk 0:02:16.4]} 12. Nxd4 {[%clk 0:02:34.3]}
12... Re8 {[%clk 0:02:07.2]} 13. Nxc6 {[%clk 0:02:30.2]} 13... bxc6 {[%clk
0:02:05.8]} 14. Rc1 {[%clk 0:02:30]} 14... Bd7 {[%clk 0:02:05]} 15. e3 {[%clk
0:02:17.4]} 15... Ne4 {[%clk 0:01:59.8]} 16. Qd4 {[%clk 0:02:09.9]} 16... Nd6
{[%clk 0:01:49.6]} 17. Bxd6 {[%clk 0:02:03.2]} 17... Qxd6 {[%clk 0:01:47.6]} 18.
e4 {[%clk 0:02:03.1]} 18... Qxa3 {[%clk 0:01:38.2]} 19. exd5 {[%clk 0:02:03]}
19... cxd5 {[%clk 0:01:32.9]} 20. Bxd5 {[%clk 0:01:58.9]} 20... Rad8 {[%clk
0:01:31.1]} 21. Qf4 {[%clk 0:01:36.5]} 21... Qe7 {[%clk 0:01:13.7]} 22. Rfe1
{[%clk 0:01:29.3]} 22... Qxe1+ {[%clk 0:01:11.5]} 23. Rxe1 {[%clk 0:01:29.1]}
23... Rxe1+ {[%clk 0:01:11]} 24. Kg2 {[%clk 0:01:29.4]} 24... Re7 {[%clk
0:00:54.2]} 25. Qg5 {[%clk 0:00:55.4]} 25... Kf8 {[%clk 0:00:48.6]} 26. Bf3
{[%clk 0:00:44.2]} 26... h6 {[%clk 0:00:44.5]} 27. Qc5 {[%clk 0:00:43.8]} 27...
a6 {[%clk 0:00:39.7]} 28. h4 {[%clk 0:00:43.1]} 28... Bb5 {[%clk 0:00:38.4]} 29.
Qb6 {[%clk 0:00:40.5]} 29... Rde8 {[%clk 0:00:37.5]} 30. Qc5 {[%clk 0:00:36.3]}
30... Kg8 {[%clk 0:00:34.4]} 31. Qb4 {[%clk 0:00:36.3]} 31... Re1 {[%clk
0:00:33]} 32. a4 {[%clk 0:00:35.5]} 32... Bf1+ {[%clk 0:00:32.2]} 33. Kh2 {[%clk
0:00:35]} 33... Rc1 {[%clk 0:00:29.2]} 34. Bh5 {[%clk 0:00:30.9]} 34... g6
{[%clk 0:00:25.7]} 35. Qf4 {[%clk 0:00:23]} 35... gxh5 {[%clk 0:00:22.8]} 36.
Qxc1 {[%clk 0:00:22.3]} 36... Be2 {[%clk 0:00:20.3]} 37. Qc6 {[%clk 0:00:21]}
37... Re6 {[%clk 0:00:18.8]} 38. Qc8+ {[%clk 0:00:16.3]} 38... Kg7 {[%clk
0:00:17.9]} 39. f4 {[%clk 0:00:15.8]} 39... Bf3 {[%clk 0:00:16.3]} 40. Qc3+
{[%clk 0:00:15.6]} 40... Kg6 {[%clk 0:00:14.7]} 41. Qxf3 {[%clk 0:00:15.8]} 1-0

[Event "Late-Titled-Tuesday-Blitz-April-23-2024"]
[Site "Chess.com"]
[Date "2024.04.23"]
[Round "5"]
[White "NajdorfPlayerc5"]
[Black "quvnoq_muxlis"]
[Result "0-1"]
[WhiteElo "2474"]
[BlackElo "2682"]
[TimeControl "180+1"]
[EndTime "14:56:38 PDT"]
[Termination "quvnoq_muxlis won on time"]

1. e4 {[%clk 0:02:51.5]} 1... c5 {[%clk 0:02:59.8]} 2. Nf3 {[%clk 0:02:51.6]}
2... d6 {[%clk 0:02:59.6]} 3. d4 {[%clk 0:02:52.2]} 3... cxd4 {[%clk 0:03:00.5]}
4. Nxd4 {[%clk 0:02:52.8]} 4... Nf6 {[%clk 0:03:01.3]} 5. Nc3 {[%clk 0:02:52.9]}
5... a6 {[%clk 0:03:02]} 6. Be3 {[%clk 0:02:48.4]} 6... e6 {[%clk 0:02:59.9]} 7.
g4 {[%clk 0:02:47]} 7... h5 {[%clk 0:02:57.2]} 8. g5 {[%clk 0:02:46.4]} 8... Ng4
{[%clk 0:02:57.5]} 9. Bc1 {[%clk 0:02:40.6]} 9... Nc6 {[%clk 0:02:56]} 10. Nxc6
{[%clk 0:02:32.2]} 10... bxc6 {[%clk 0:02:53.2]} 11. h3 {[%clk 0:02:32.6]} 11...
Ne5 {[%clk 0:02:52.8]} 12. f4 {[%clk 0:02:33.2]} 12... Nd7 {[%clk 0:02:42.6]}
13. Be3 {[%clk 0:02:32.2]} 13... d5 {[%clk 0:02:38.3]} 14. Be2 {[%clk
0:02:28.5]} 14... Rb8 {[%clk 0:02:26.6]} 15. Bxh5 {[%clk 0:02:15.2]} 15... Rxb2
{[%clk 0:02:23.2]} 16. O-O {[%clk 0:02:12.9]} 16... g6 {[%clk 0:02:13.1]} 17.
Bg4 {[%clk 0:02:12.7]} 17... Bg7 {[%clk 0:02:13.6]} 18. e5 {[%clk 0:02:08.5]}
18... Qa5 {[%clk 0:02:07]} 19. Qd2 {[%clk 0:01:49.4]} 19... c5 {[%clk
0:01:50.7]} 20. Rab1 {[%clk 0:01:22.7]} 20... Rxb1 {[%clk 0:01:44.3]} 21. Rxb1
{[%clk 0:01:23.6]} 21... O-O {[%clk 0:01:44.1]} 22. Nxd5 {[%clk 0:01:19.8]}
22... Qxa2 {[%clk 0:01:39.7]} 23. Ne7+ {[%clk 0:01:16.2]} 23... Kh7 {[%clk
0:01:40.2]} 24. Rf1 {[%clk 0:00:57.5]} 24... Qa4 {[%clk 0:01:27.2]} 25. Rd1
{[%clk 0:00:33.8]} 25... Nb6 {[%clk 0:01:16.8]} 26. Bxc5 {[%clk 0:00:32.3]}
26... Qb5 {[%clk 0:00:50.1]} 27. Qb4 {[%clk 0:00:17.5]} 27... Qxb4 {[%clk
0:00:49.4]} 28. Bxb4 {[%clk 0:00:18.4]} 28... Bb7 {[%clk 0:00:50]} 29. Kf2
{[%clk 0:00:08.9]} 29... Ra8 {[%clk 0:00:48.7]} 30. Bf3 {[%clk 0:00:08.6]} 30...
Bxf3 {[%clk 0:00:48.8]} 31. Kxf3 {[%clk 0:00:09.5]} 31... a5 {[%clk 0:00:49.2]}
32. Bc5 {[%clk 0:00:09.4]} 32... Nc4 {[%clk 0:00:45.5]} 33. Rd4 {[%clk 0:00:08]}
33... Nb2 {[%clk 0:00:28.1]} 34. Ba3 {[%clk 0:00:07.5]} 34... Rb8 {[%clk
0:00:28.8]} 35. Nc6 {[%clk 0:00:06.2]} 35... Rb5 {[%clk 0:00:27.1]} 36. c4
{[%clk 0:00:03.1]} 36... Rb3+ {[%clk 0:00:26.2]} 37. Ke4 {[%clk 0:00:02.6]}
37... Rxa3 {[%clk 0:00:26.6]} 38. Rd2 {[%clk 0:00:02]} 38... Nxc4 {[%clk
0:00:26.2]} 39. Rc2 {[%clk 0:00:02.5]} 39... Nb6 {[%clk 0:00:26.3]} 40. Ne7
{[%clk 0:00:02.2]} 40... Bf8 {[%clk 0:00:23.3]} 41. Nc6 {[%clk 0:00:01.6]} 41...
Nd5 {[%clk 0:00:23.8]} 42. Rd2 {[%clk 0:00:01.7]} 42... Bc5 {[%clk 0:00:23.3]}
0-1

[Event "Late-Titled-Tuesday-Blitz-April-23-2024"]
[Site "Chess.com"]
[Date "2024.04.23"]
[Round "5"]
[White "dosto07"]
[Black "Fantastic_Power"]
[Result "1-0"]
[WhiteElo "2503"]
[BlackElo "2682"]
[TimeControl "180+1"]
[EndTime "14:56:38 PDT"]
[Termination "dosto07 won by checkmate"]

1. e4 {[%clk 0:03:00.9]} 1... c5 {[%clk 0:02:56.4]} 2. Nf3 {[%clk 0:03:00.9]}
2... Nf6 {[%clk 0:02:56.1]} 3. Nc3 {[%clk 0:02:52.2]} 3... e6 {[%clk 0:02:55.4]}
4. e5 {[%clk 0:02:50]} 4... Nd5 {[%clk 0:02:54.9]} 5. Nxd5 {[%clk 0:02:50.3]}
5... exd5 {[%clk 0:02:55.8]} 6. d4 {[%clk 0:02:50.8]} 6... Nc6 {[%clk
0:02:56.2]} 7. dxc5 {[%clk 0:02:46.6]} 7... Bxc5 {[%clk 0:02:57.1]} 8. Bd3
{[%clk 0:02:46.7]} 8... d6 {[%clk 0:02:56.7]} 9. exd6 {[%clk 0:02:43.2]} 9...
Qxd6 {[%clk 0:02:57.6]} 10. O-O {[%clk 0:02:43.2]} 10... O-O {[%clk 0:02:57.6]}
11. Re1 {[%clk 0:02:41.4]} 11... h6 {[%clk 0:02:44.5]} 12. h3 {[%clk 0:02:34.1]}
12... Qf6 {[%clk 0:02:40.4]} 13. c3 {[%clk 0:02:30.5]} 13... d4 {[%clk
0:02:40.4]} 14. c4 {[%clk 0:02:27.5]} 14... Bf5 {[%clk 0:02:39.9]} 15. a3 {[%clk
0:02:23.8]} 15... a5 {[%clk 0:02:36.3]} 16. Ra2 {[%clk 0:01:55.5]} 16... Rfe8
{[%clk 0:02:30.8]} 17. Bxf5 {[%clk 0:01:53]} 17... Qxf5 {[%clk 0:02:30.6]} 18.
b3 {[%clk 0:01:52.9]} 18... d3 {[%clk 0:02:20]} 19. Rd2 {[%clk 0:01:44.2]} 19...
Rxe1+ {[%clk 0:02:17.2]} 20. Nxe1 {[%clk 0:01:44.3]} 20... Rd8 {[%clk
0:01:14.2]} 21. Nxd3 {[%clk 0:01:43.4]} 21... Ba7 {[%clk 0:01:14.8]} 22. Qf3
{[%clk 0:01:33.8]} 22... Qxf3 {[%clk 0:01:11.1]} 23. gxf3 {[%clk 0:01:34.1]}
23... Nd4 {[%clk 0:01:12]} 24. Ne1 {[%clk 0:01:11.9]} 24... Re8 {[%clk
0:00:56.6]} 25. Kf1 {[%clk 0:00:55.6]} 25... Nxb3 {[%clk 0:00:56.4]} 26. Rd1
{[%clk 0:00:55.6]} 26... Rc8 {[%clk 0:00:49]} 27. Be3 {[%clk 0:00:48.3]} 27...
Bxe3 {[%clk 0:00:46.6]} 28. fxe3 {[%clk 0:00:48.8]} 28... Rxc4 {[%clk
0:00:47.1]} 29. Rd8+ {[%clk 0:00:48.9]} 29... Kh7 {[%clk 0:00:46.7]} 30. Rd7
{[%clk 0:00:49.5]} 30... b5 {[%clk 0:00:37.4]} 31. Rxf7 {[%clk 0:00:48.6]} 31...
Nc5 {[%clk 0:00:23.8]} 32. f4 {[%clk 0:00:40.1]} 32... Ra4 {[%clk 0:00:19.2]}
33. Rc7 {[%clk 0:00:38]} 33... Ne4 {[%clk 0:00:18.2]} 34. Rb7 {[%clk 0:00:33]}
34... Nc3 {[%clk 0:00:18.6]} 35. Nc2 {[%clk 0:00:30.4]} 35... b4 {[%clk
0:00:09.4]} 36. axb4 {[%clk 0:00:29.5]} 36... Ra2 {[%clk 0:00:09.8]} 37. Nd4
{[%clk 0:00:27]} 37... a4 {[%clk 0:00:09.5]} 38. f5 {[%clk 0:00:26.3]} 38... a3
{[%clk 0:00:05.9]} 39. f6 {[%clk 0:00:24.7]} 39... Kg6 {[%clk 0:00:01.8]} 40.
fxg7 {[%clk 0:00:24.1]} 40... Ra1+ {[%clk 0:00:01.3]} 41. Kg2 {[%clk 0:00:24.2]}
41... Ne4 {[%clk 0:00:01.6]} 42. g8=Q+ {[%clk 0:00:23.5]} 42... Kh5 {[%clk
0:00:02.4]} 43. Qg4# {[%clk 0:00:21.7]} 1-0